fUST/lending_fUST_20250201
["ID","MTS","AMOUNT","RATE_DAILY","PERIOD"]
[351162728,1738379440992,-1694.26,0.00016438,2]
[351162729,1738379441000,-172.4705959,0.00016438,2]
[351162730,1738379441012,-1354.99694571,0.00016438,2]
[351162731,1738379441023,-166.79245839,0.00016438,2]
[351162732,1738379441032,-231.28354161,0.00016438,2]
[351162733,1738379441043,-1375.39706211,0.00016438,2]
[351162734,1738379441054,-87.57939628,0.00016438,2]
[351162735,1738379441063,-963.80177049,0.00016438,2]
[351162736,1738379441076,-730.45822951,0.00016438,2]
[351162738,1738379441085,-565.76841299,0.00016438,2]
[351162739,1738379441096,-834.67211522,0.00016438,2]
[351162742,1738379441112,-293.81947179,0.00016438,2]
[351162744,1738379441121,-41.16177049,0.00016438,2]
[351162746,1738379441131,-1133.85484393,0.00016438,2]
[351162838,1738379443701,-519.24338558,0.00016438,2]
[351162839,1738379443712,-84.75661442,0.00016438,2]
[351162866,1738379446871,-415.24338558,0.00016438,2]
[351162867,1738379446882,-500.0,0.00016438,2]
[351162868,1738379446891,-593.12,0.00016438,2]
[351162869,1738379446901,-505.21307681,0.00016438,2]
[351162870,1738379446910,-500.0,0.00016438,2]
[351162871,1738379446920,-505.41793361,0.00016438,2]
[351162872,1738379446929,-158.909696,0.00016438,2]
[351162873,1738379446938,-500.0,0.00016438,2]
[351162874,1738379446948,-500.0,0.00016438,2]
[351162875,1738379446957,-151.0,0.00016438,2]
[351162876,1738379446966,-151.0,0.00016438,2]
[351162877,1738379446976,-158.286918,0.00016438,2]
[351162878,1738379446985,-151.0,0.00016438,2]
[351162879,1738379446994,-151.0,0.00016438,2]
[351162880,1738379447003,-289.938888,0.00016438,2]
[351162881,1738379447013,-347.4977541,0.00016438,2]
[351162882,1738379447022,-500.0,0.00016438,2]
[351162883,1738379447031,-500.0,0.00016438,2]
[351162884,1738379447041,-1792.27,0.00016438,2]
[351162885,1738379447050,-500.0,0.00016438,2]
[351162886,1738379447059,-500.0,0.00016438,2]
[351162887,1738379447069,-503.08806633,0.00016438,2]
[351162888,1738379447079,-500.0,0.00016438,2]
[351162889,1738379447088,-500.0,0.00016438,2]
[351162890,1738379447097,-1270.71,0.00016438,2]
[351162891,1738379447106,-500.0,0.00016438,2]
[351162892,1738379447116,-520.59140733,0.00016438,2]
[351162893,1738379447125,-500.0,0.00016438,2]
[351162894,1738379447134,-500.0,0.00016438,2]
[351162895,1738379447143,-517.63919065,0.00016438,2]
[351162896,1738379447152,-509.29797545,0.00016438,2]
[351162897,1738379447161,-367.45811282,0.00016438,2]
[351162898,1738379447171,-500.0,0.00016438,2]
[351162899,1738379447181,-500.0,0.00016438,2]
[351162900,1738379447191,-522.34957715,0.00016438,2]
[351162901,1738379447201,-1052.77,0.00016438,2]
[351162902,1738379447211,-513.78112103,0.00016438,2]
[351162903,1738379447222,-500.0,0.00016438,2]
[351162904,1738379447231,-500.0,0.00016438,2]
[351162905,1738379447240,-506.66499295,0.00016438,2]
[351162906,1738379447252,-1000.0,0.00016438,7]
[351162907,1738379447261,-500.0,0.00016438,2]
[351162908,1738379447270,-500.0,0.00016438,2]
[351162909,1738379447279,-500.0,0.00016438,2]
[351162910,1738379447288,-500.0,0.00016438,2]
[351162911,1738379447298,-531.5606629,0.00016438,2]
[351162912,1738379447308,-151.0,0.00016438,2]
[351162913,1738379447318,-162.409546,0.00016438,2]
[351162914,1738379447329,-151.0,0.00016438,2]
[351162915,1738379447338,-1694.26,0.00016574,2]
[351162916,1738379447349,-1694.26,0.00016574,2]
[351162917,1738379447360,-1694.26,0.00016574,2]
[351162918,1738379447372,-3123.63227749,0.00016575,5]
[351162919,1738379447382,-530.65107731,0.00016575,2]
[351162920,1738379447391,-500.0,0.00016575,2]
[351162921,1738379447401,-500.0,0.00016575,2]
[351162922,1738379447410,-500.0,0.00016575,2]
[351162923,1738379447419,-500.0,0.00016575,2]
[351162924,1738379447428,-500.0,0.00016575,2]
[351162925,1738379447437,-500.0,0.00016575,2]
[351162926,1738379447446,-500.0,0.00016575,2]
[351162927,1738379447456,-500.0,0.00016575,2]
[351162928,1738379447465,-500.0,0.00016575,2]
[351162929,1738379447475,-500.0,0.00016575,2]
[351162930,1738379447485,-500.0,0.00016575,2]
[351162931,1738379447495,-1020.45,0.00016575,2]
[351162932,1738379447504,-500.0,0.00016575,2]
[351162933,1738379447514,-515.59524192,0.00016575,2]
[351162934,1738379447523,-514.02592296,0.00016575,2]
[351162935,1738379447533,-513.651093,0.00016575,2]
[351162936,1738379447542,-500.0,0.00016575,2]
[351162937,1738379447552,-500.0,0.00016575,2]
[351162938,1738379447561,-807.99,0.00016575,2]
[351162939,1738379447571,-500.0,0.00016575,2]
[351162940,1738379447582,-500.0,0.00016575,2]
[351162941,1738379447591,-500.0,0.00016575,2]
[351162942,1738379447600,-500.0,0.00016575,2]
[351162943,1738379447612,-349.47990067,0.00016575,2]
[351162952,1738379783646,183.053136,0.00013973,2]
[351162956,1738379943589,150.0,0.00015056,2]
[351162973,1738380356126,-227.67620851,0.00016227,2]
[351162978,1738380452134,-413.58644338,0.00016175,2]
[351162982,1738380524785,40021.0733056,0.00013,2]
[351163049,1738380632035,-746.335558,0.00015472,2]
[351163053,1738380632067,-704.3480818,0.00015472,2]
[351163055,1738380632077,-226.82395311,0.00016013,2]
[351163057,1738380632086,-535.3689264,0.00016338,2]
[351163059,1738380632097,-159.63393533,0.00016409,2]
[351163061,1738380632107,-342.7496418,0.00016409,2]
[351163063,1738380632116,-300.0,0.00016437,2]
[351163066,1738380632126,-43.87546156,0.00016438,2]
[351163137,1738380637796,-457.96650135,0.00016438,2]
[351163139,1738380637805,-500.0,0.00016438,2]
[351163141,1738380637815,-511.46489255,0.00016438,2]
[351163143,1738380637824,-227.84822879,0.00016438,2]
[351163144,1738380637834,-385.21669434,0.00016438,2]
[351163146,1738380637844,-500.0,0.00016438,2]
[351163147,1738380637853,-500.0,0.00016438,2]
[351163149,1738380637862,-500.0,0.00016438,2]
[351163150,1738380637872,-500.0,0.00016438,2]
[351163152,1738380637882,-341.2993153,0.00016438,2]
[351163153,1738380637891,-202.1487347,0.00016438,2]
[351163155,1738380637901,-500.0,0.00016438,2]
[351163157,1738380637911,-500.0,0.00016438,2]
[351163158,1738380637920,-500.0,0.00016438,2]
[351163160,1738380637929,-500.0,0.00016438,2]
[351163161,1738380637939,-186.03853821,0.00016438,2]
[351163163,1738380637949,-500.0,0.00016438,2]
[351163164,1738380637958,-514.61371114,0.00016438,2]
[351163166,1738380637967,-512.67228118,0.00016438,2]
[351163167,1738380637976,-513.32597637,0.00016438,2]
[351163169,1738380637986,-469.77573542,0.00016438,2]
[351163171,1738380637996,-506.21234705,0.00016438,2]
[351163172,1738380638005,-500.0,0.00016438,2]
[351163174,1738380638015,-623.01553328,0.00016438,2]
[351163175,1738380638024,-827.58,0.00016438,2]
[351163177,1738380638033,-500.0,0.00016438,2]
[351163178,1738380638042,-500.0,0.00016438,2]
[351163180,1738380638053,-500.0,0.00016438,2]
[351163181,1738380638063,-500.0,0.00016438,2]
[351163183,1738380638072,-500.0,0.00016438,2]
[351163184,1738380638081,-500.0,0.00016438,2]
[351163186,1738380638092,-577.33,0.00016438,2]
[351163188,1738380638102,-500.0,0.00016438,2]
[351163189,1738380638111,-513.02628897,0.00016438,2]
[351163191,1738380638120,-500.0,0.00016438,2]
[351163193,1738380638130,-500.0,0.00016438,2]
[351163194,1738380638141,-500.0,0.00016438,2]
[351163196,1738380638151,-500.0,0.00016438,2]
[351163198,1738380638160,-500.0,0.00016438,2]
[351163199,1738380638170,-500.0,0.00016438,2]
[351163201,1738380638179,-550.0,0.00016438,2]
[351163202,1738380638188,-589.24,0.00016438,2]
[351163204,1738380638197,-988.32,0.00016438,2]
[351163206,1738380638206,-988.32,0.00016438,2]
[351163207,1738380638216,-500.0,0.00016438,2]
[351163209,1738380638226,-500.0,0.00016438,2]
[351163211,1738380638235,-500.0,0.00016438,2]
[351163212,1738380638244,-509.25736672,0.00016438,2]
[351163214,1738380638253,-500.0,0.00016438,2]
[351163216,1738380638262,-500.0,0.00016438,2]
[351163217,1738380638271,-500.0,0.00016438,2]
[351163219,1738380638280,-500.0,0.00016438,2]
[351163221,1738380638289,-419.8496001,0.00016438,2]
[351163222,1738380638298,-438.55021893,0.00016438,2]
[351163224,1738380638307,-500.0,0.00016438,2]
[351163225,1738380638316,-500.0,0.00016438,2]
[351163227,1738380638326,-350.49442653,0.00016438,2]
[351163229,1738380638334,-500.0,0.00016438,2]
[351163230,1738380638344,-515.04872604,0.00016438,2]
[351163232,1738380638354,-500.0,0.00016438,2]
[351163234,1738380638363,-506.6104758,0.00016438,2]
[351163235,1738380638372,-500.0,0.00016438,2]
[351163237,1738380638381,-500.0,0.00016438,2]
[351163239,1738380638391,-500.0,0.00016438,2]
[351163240,1738380638400,-500.0,0.00016438,2]
[351163242,1738380638409,-500.0,0.00016438,2]
[351163244,1738380638419,-1008.91,0.00016438,2]
[351163245,1738380638428,-500.0,0.00016438,2]
[351163247,1738380638437,-500.0,0.00016438,2]
[351163248,1738380638446,-530.65260412,0.00016438,2]
[351163250,1738380638455,-508.22207345,0.00016438,2]
[351163252,1738380638464,-505.90660893,0.00016438,2]
[351163253,1738380638473,-522.61697842,0.00016438,2]
[351163255,1738380638482,-400.39968217,0.00016438,2]
[351163257,1738380638491,-512.83469306,0.00016438,2]
[351163258,1738380638500,-500.0,0.00016438,2]
[351163260,1738380638510,-500.0,0.00016438,2]
[351163262,1738380638518,-1000.0,0.00016438,7]
[351163263,1738380638527,-1217.76,0.00016438,2]
[351163265,1738380638536,-935.42,0.00016438,2]
[351163267,1738380638546,-500.0,0.00016438,2]
[351163268,1738380638555,-500.0,0.00016438,2]
[351163270,1738380638564,-500.0,0.00016438,2]
[351163272,1738380638573,-500.0,0.00016438,2]
[351163273,1738380638582,-500.0,0.00016438,2]
[351163275,1738380638592,-500.0,0.00016438,2]
[351163277,1738380638601,-237.46702092,0.00016438,2]
[351163278,1738380638610,-411.69260699,0.00016438,2]
[351163280,1738380638620,-500.0,0.00016574,2]
[351163282,1738380638629,-500.0,0.00016574,2]
[351163283,1738380638639,-988.32,0.00016574,2]
[351163285,1738380638649,-68.93846815,0.00016574,2]
[351163287,1738380638662,-919.38153185,0.00016574,2]
[351163289,1738380638671,-2035.61,0.00016574,2]
[351163290,1738380638680,-500.0,0.00016575,2]
[351163292,1738380638689,-264.95379472,0.00016575,2]
[351163294,1738380638698,-198.40085443,0.00016575,2]
[351163296,1738380638709,-301.59914557,0.00016575,2]
[351163297,1738380638719,-500.0,0.00016575,2]
[351163299,1738380638728,-500.0,0.00016575,2]
[351163301,1738380638737,-173.45949388,0.00016575,2]
[351163302,1738380638746,-500.0,0.00016575,2]
[351163304,1738380638756,-500.0,0.00016575,2]
[351163306,1738380638767,-500.0,0.00016575,2]
[351163307,1738380638776,-500.0,0.00016575,2]
[351163309,1738380638785,-500.0,0.00016575,2]
[351163311,1738380638794,-500.0,0.00016575,2]
[351163312,1738380638803,-500.0,0.00016575,2]
[351163314,1738380638812,-500.0,0.00016575,2]
[351163316,1738380638822,-827.58,0.00016575,2]
[351163317,1738380638830,-500.0,0.00016575,2]
[351163319,1738380638840,-500.0,0.00016575,2]
[351163320,1738380638848,-290.23962315,0.00016575,2]
[351163322,1738380638858,-500.0,0.00016575,2]
[351163324,1738380638867,-500.0,0.00016575,2]
[351163326,1738380638876,-514.99446736,0.00016575,2]
[351163328,1738380638886,-356.82419811,0.00016575,2]
[351163330,1738380638897,-220.50580189,0.00016575,2]
[351163332,1738380638907,-308.28177392,0.00016575,2]
[351163334,1738380638919,-191.71822608,0.00016575,2]
[351163336,1738380638928,-500.0,0.00016575,2]
[351163338,1738380638937,-371.81616249,0.00016575,2]
[351163340,1738380638946,-450.16451998,0.00016575,2]
[351163341,1738380638955,-517.45446611,0.00016575,2]
[351163342,1738380638965,-500.0,0.00016575,2]
[351163343,1738380638974,-589.24,0.00016575,2]
[351163344,1738380638984,-342.78489687,0.00016575,2]
[351163345,1738380638993,-96.56840284,0.00016575,2]
[351163555,1738380642819,-500.0,0.00016438,2]
[351163556,1738380642829,-159.29900488,0.00016438,2]
[351163558,1738380642841,-83.27829875,0.00016438,2]
[351163560,1738380642851,-403.43159716,0.00016575,2]
[351163562,1738380642861,-500.0,0.00016575,2]
[351163563,1738380642870,-500.0,0.00016575,2]
[351163565,1738380642880,-500.0,0.00016575,2]
[351163567,1738380642891,-234.51825773,0.00016575,2]
[351163597,1738380709083,182.172603,0.00013973,2]
[351163621,1738381549157,-301.08191726,0.00015583,2]
[351163622,1738381549178,-154.674,0.0001574,2]
[351163623,1738381549352,-571.99999663,0.00016338,2]
[351163624,1738381549377,-2008.99058286,0.00016394,2]
[351163629,1738381687980,181.336097,0.00013973,2]
[351163633,1738381745888,154.6,0.00010959,2]
[351163635,1738381756603,773.0,0.00010959,2]
[351163637,1738381773090,-4853.7244,0.00016175,2]
[351163673,1738381832107,-146.2756,0.00016175,2]
[351163675,1738381832118,-171.3748209,0.00016409,2]
[351163677,1738381832129,-300.0,0.00016437,2]
[351163679,1738381832139,-630.71648817,0.00016438,2]
[351163681,1738381832150,-500.0,0.00016438,2]
[351163684,1738381832160,-500.0,0.00016438,2]
[351163686,1738381832170,-500.0,0.00016438,2]
[351163688,1738381832180,-500.0,0.00016438,2]
[351163690,1738381832191,-500.0,0.00016438,2]
[351163692,1738381832201,-582.31158405,0.00016438,2]
[351163694,1738381832212,-500.0,0.00016438,2]
[351163696,1738381832222,-500.0,0.00016438,2]
[351163699,1738381832233,-500.0,0.00016438,2]
[351163701,1738381832243,-500.0,0.00016438,2]
[351163703,1738381832253,-500.0,0.00016438,2]
[351163705,1738381832264,-500.0,0.00016438,2]
[351163707,1738381832274,-507.13753001,0.00016438,2]
[351163709,1738381832284,-538.54,0.00016438,2]
[351163711,1738381832295,-505.60679384,0.00016438,2]
[351163714,1738381832306,-510.35561896,0.00016438,2]
[351163715,1738381832316,-500.0,0.00016438,2]
[351163716,1738381832326,-500.0,0.00016438,2]
[351163718,1738381832336,-500.0,0.00016438,2]
[351163719,1738381832347,-500.0,0.00016438,2]
[351163720,1738381832358,-510.51094494,0.00016438,2]
[351163721,1738381832368,-500.0,0.00016438,2]
[351163722,1738381832379,-500.0,0.00016438,2]
[351163723,1738381832390,-500.0,0.00016438,2]
[351163724,1738381832402,-500.0,0.00016438,2]
[351163725,1738381832413,-500.0,0.00016438,2]
[351163726,1738381832425,-520.34246035,0.00016438,2]
[351163727,1738381832439,-511.1380657,0.00016438,2]
[351163728,1738381832449,-515.42652473,0.00016438,2]
[351163729,1738381832460,-758.61,0.00016438,2]
[351163730,1738381832471,-500.0,0.00016438,2]
[351163731,1738381832482,-500.0,0.00016438,2]
[351163732,1738381832493,-538.52,0.00016438,2]
[351163733,1738381832503,-500.0,0.00016438,2]
[351163734,1738381832514,-500.0,0.00016438,2]
[351163735,1738381832525,-619.76,0.00016438,2]
[351163736,1738381832536,-500.0,0.00016438,2]
[351163737,1738381832548,-500.0,0.00016438,2]
[351163738,1738381832562,-500.0,0.00016438,2]
[351163739,1738381832582,-509.56558576,0.00016438,2]
[351163740,1738381832594,-502.43343245,0.00016438,2]
[351163741,1738381832760,-500.0,0.00016438,2]
[351163742,1738381832770,-500.0,0.00016438,2]
[351163743,1738381832780,-296.07305269,0.00016438,2]
[351163744,1738381832789,-500.0,0.00016438,2]
[351163745,1738381832799,-500.0,0.00016438,2]
[351163746,1738381832808,-544.28,0.00016438,2]
[351163747,1738381832818,-823.6,0.00016438,2]
[351163748,1738381832827,-500.0,0.00016438,2]
[351163749,1738381832837,-500.0,0.00016438,2]
[351163750,1738381832846,-501.84088076,0.00016438,2]
[351163751,1738381832856,-500.0,0.00016438,2]
[351163752,1738381832866,-500.0,0.00016438,2]
[351163753,1738381832876,-500.0,0.00016438,2]
[351163754,1738381832887,-540.14,0.00016438,2]
[351163755,1738381832896,-505.35055994,0.00016438,2]
[351163756,1738381832906,-500.0,0.00016438,2]
[351163757,1738381832917,-500.0,0.00016438,2]
[351163758,1738381832927,-500.0,0.00016438,2]
[351163759,1738381832936,-1950.8,0.00016438,2]
[351163760,1738381832945,-500.0,0.00016438,2]
[351163761,1738381832955,-966.87,0.00016438,2]
[351163762,1738381832965,-500.0,0.00016438,2]
[351163763,1738381832974,-500.0,0.00016438,2]
[351163764,1738381832983,-500.0,0.00016438,2]
[351163765,1738381832993,-500.0,0.00016438,2]
[351163766,1738381833002,-500.0,0.00016438,2]
[351163767,1738381833011,-500.0,0.00016438,2]
[351163768,1738381833020,-896.44,0.00016438,2]
[351163769,1738381833030,-1000.0,0.00016438,7]
[351163770,1738381833039,-500.0,0.00016438,2]
[351163771,1738381833048,-450.65165096,0.00016438,2]
[351163772,1738381833058,-500.0,0.00016438,2]
[351163773,1738381833067,-1000.0,0.000165,2]
[351163774,1738381833076,-525.32656818,0.00016572,2]
[351163775,1738381833085,-500.0,0.00016573,2]
[351163776,1738381833095,-535.42,0.00016573,2]
[351163777,1738381833104,-500.0,0.00016573,2]
[351163778,1738381833114,-500.0,0.00016573,2]
[351163779,1738381833123,-500.0,0.00016573,2]
[351163780,1738381833132,-1453.63,0.00016573,2]
[351163781,1738381833142,-500.0,0.00016573,2]
[351163782,1738381833151,-823.6,0.00016574,2]
[351163783,1738381833160,-644.52417523,0.00016575,2]
[351163784,1738381833170,-500.0,0.00016575,2]
[351163785,1738381833179,-500.0,0.00016575,2]
[351163786,1738381833189,-500.0,0.00016575,2]
[351163787,1738381833199,-241.06399823,0.00016575,2]
[351163788,1738381833216,-258.93600177,0.00016575,2]
[351163789,1738381833225,-20.89421295,0.00016575,2]
[351163790,1738381833236,-302.0,0.00016575,2]
[351163791,1738381833248,-177.10578705,0.00016575,2]
[351163792,1738381833258,-500.0,0.00016575,2]
[351163793,1738381833268,-500.0,0.00016575,2]
[351163794,1738381833278,-500.0,0.00016575,2]
[351163795,1738381833288,-500.0,0.00016575,2]
[351163796,1738381833298,-500.0,0.00016575,2]
[351163797,1738381833307,-758.61,0.00016575,2]
[351163798,1738381833317,-500.0,0.00016575,2]
[351163799,1738381833327,-500.0,0.00016575,2]
[351163800,1738381833337,-500.0,0.00016575,2]
[351163801,1738381833348,-500.0,0.00016575,2]
[351163802,1738381833357,-619.76,0.00016575,2]
[351163803,1738381833367,-500.0,0.00016575,2]
[351163804,1738381833376,-188.26,0.00016575,2]
[351163805,1738381833385,-500.0,0.00016575,2]
[351163806,1738381833395,-500.0,0.00016575,2]
[351163807,1738381833404,-184.3,0.00016575,2]
[351163808,1738381833413,-500.0,0.00016575,2]
[351163809,1738381833423,-500.0,0.00016575,2]
[351163810,1738381833436,-500.0,0.00016575,2]
[351163811,1738381833446,-540.14,0.00016575,2]
[351163812,1738381833456,-190.64034493,0.00016575,2]
[351163813,1738381833466,-500.0,0.00016575,2]
[351163814,1738381833477,-1950.8,0.00016575,2]
[351163815,1738381833487,-500.0,0.00016575,2]
[351163816,1738381833496,-500.0,0.00016575,2]
[351163817,1738381833506,-966.87,0.00016575,2]
[351163818,1738381833515,-500.0,0.00016575,2]
[351163819,1738381833526,-500.0,0.00016575,2]
[351163820,1738381833535,-500.0,0.00016575,2]
[351163821,1738381833544,-500.0,0.00016575,2]
[351163822,1738381833554,-500.0,0.00016575,2]
[351163823,1738381833563,-896.44,0.00016575,2]
[351163824,1738381833573,-1000.0,0.00016575,7]
[351163825,1738381833582,-500.0,0.00016575,2]
[351163826,1738381833591,-500.0,0.00016575,2]
[351163827,1738381833600,-156.3891546,0.000166,2]
[351163828,1738381833610,-182.49521099,0.00016612,2]
[351163829,1738381833621,-354.4430635,0.000167,2]
[351163830,1738381833630,-823.6,0.00016709,2]
[351163831,1738381833640,-500.0,0.0001671,2]
[351163832,1738381833649,-500.0,0.0001671,2]
[351163833,1738381833659,-195.18,0.0001671,2]
[351163834,1738381833668,-1453.63,0.0001671,2]
[351163835,1738381833678,-500.0,0.0001671,2]
[351163836,1738381833687,-823.6,0.00016711,2]
[351163837,1738381833697,-153.352727,0.00016712,2]
[351163838,1738381833707,-500.0,0.00016712,2]
[351163839,1738381833717,-500.0,0.00016712,2]
[351163840,1738381833728,-317.92447722,0.00016712,2]
[351163841,1738381833738,-500.0,0.00016712,2]
[351163842,1738381833748,-500.0,0.00016712,2]
[351163843,1738381833758,-500.0,0.00016712,2]
[351163844,1738381833767,-500.0,0.00016712,2]
[351163845,1738381833777,-151.0,0.00016712,2]
[351163846,1738381833786,-513.57280598,0.00016712,2]
[351163847,1738381833796,-151.0,0.00016712,2]
[351163848,1738381833807,-508.30988724,0.00016712,2]
[351163849,1738381833816,-500.0,0.00016712,2]
[351163850,1738381833826,-500.0,0.00016712,2]
[351163851,1738381833835,-758.61,0.00016712,2]
[351163852,1738381833844,-234.06525871,0.00016712,2]
[351163853,1738381833854,-500.0,0.00016712,2]
[351163854,1738381833863,-500.0,0.00016712,2]
[351163855,1738381833872,-500.0,0.00016712,2]
[351163856,1738381833882,-151.0,0.00016712,2]
[351163857,1738381833892,-619.76,0.00016712,2]
[351163858,1738381833902,-500.0,0.00016712,2]
[351163859,1738381833911,-500.0,0.00016712,2]
[351163860,1738381833921,-500.0,0.00016712,2]
[351163861,1738381833930,-500.0,0.00016712,2]
[351163862,1738381833939,-500.0,0.00016712,2]
[351163863,1738381833949,-151.0,0.00016712,2]
[351163864,1738381833959,-470.29649176,0.00016712,2]
[351163865,1738381833970,-540.14,0.00016712,2]
[351163866,1738381833980,-500.0,0.00016712,2]
[351163867,1738381833990,-1950.8,0.00016712,2]
[351163868,1738381834000,-500.0,0.00016712,2]
[351163869,1738381834010,-150.05,0.00016712,2]
[351163870,1738381834020,-150.05,0.00016712,2]
[351163871,1738381834029,-514.44057742,0.00016712,2]
[351163872,1738381834039,-151.0,0.00016712,2]
[351163873,1738381834048,-966.87,0.00016712,2]
[351163874,1738381834058,-151.0,0.00016712,2]
[351163875,1738381834068,-500.0,0.00016712,2]
[351163876,1738381834079,-151.918271,0.00016712,2]
[351163877,1738381834093,-500.0,0.00016712,2]
[351163878,1738381834104,-151.0,0.00016712,2]
[351163879,1738381834113,-151.0,0.00016712,2]
[351163880,1738381834123,-500.0,0.00016712,2]
[351163881,1738381834134,-151.0,0.00016712,2]
[351163882,1738381834144,-500.0,0.00016712,2]
[351163883,1738381834153,-896.44,0.00016712,2]
[351163884,1738381834162,-1000.0,0.00016712,7]
[351163885,1738381834172,-291.93299648,0.00016712,2]
[351163886,1738381834182,-151.0,0.00016749,2]
[351163887,1738381834191,-151.0,0.00016749,2]
[351163888,1738381834201,-151.0,0.00016749,2]
[351163889,1738381834212,-717.424117,0.000168,2]
[351163890,1738381834222,-354.4430635,0.000168,2]
[351163891,1738381834234,-151.0,0.00016847,2]
[351163892,1738381834244,-500.0,0.00016847,2]
[351163893,1738381834253,-500.0,0.00016847,2]
[351163894,1738381834263,-1453.63,0.00016847,2]
[351163895,1738381834272,-500.0,0.00016847,2]
[351163896,1738381834282,-151.0,0.00016848,2]
[351163897,1738381834291,-151.0,0.00016848,2]
[351163898,1738381834301,-151.0,0.00016848,2]
[351163899,1738381834311,-151.0,0.00016848,2]
[351163900,1738381834320,-151.0,0.00016848,2]
[351163901,1738381834330,-15089.76435647,0.00016848,5]
[351163902,1738381834339,-3341.68947594,0.00016848,5]
[351163903,1738381834349,-151.0,0.00016849,2]
[351163904,1738381834359,-151.0,0.00016849,2]
[351163905,1738381834368,-500.0,0.00016849,2]
[351163906,1738381834378,-176.914236,0.00016849,2]
[351163907,1738381834388,-500.0,0.00016849,2]
[351163908,1738381834398,-151.0,0.00016849,2]
[351163909,1738381834408,-500.0,0.00016849,2]
[351163910,1738381834417,-402.52759874,0.00016849,2]
[351163911,1738381834427,-153.42221,0.00016849,2]
[351163912,1738381834443,-510.5085327,0.00016849,2]
[351163913,1738381834452,-151.0,0.00016849,2]
[351163914,1738381834461,-151.0,0.00016849,2]
[351163915,1738381834472,-500.0,0.00016849,2]
[351163916,1738381834484,-387.17660447,0.00016849,2]
[351163917,1738381834494,-758.61,0.00016849,2]
[351163918,1738381834508,-500.0,0.00016849,2]
[351163919,1738381834518,-500.0,0.00016849,2]
[351163920,1738381834528,-500.0,0.00016849,2]
[351163921,1738381834538,-151.0,0.00016849,2]
[351163922,1738381834548,-619.76,0.00016849,2]
[351163923,1738381834560,-500.0,0.00016849,2]
[351163924,1738381834570,-500.0,0.00016849,2]
[351163925,1738381834579,-500.0,0.00016849,2]
[351163926,1738381834588,-500.0,0.00016849,2]
[351163927,1738381834598,-500.0,0.00016849,2]
[351163928,1738381834607,-151.0,0.00016849,2]
[351163929,1738381834616,-540.14,0.00016849,2]
[351163930,1738381834625,-500.0,0.00016849,2]
[351163931,1738381834634,-1950.8,0.00016849,2]
[351163932,1738381834643,-512.73088488,0.00016849,2]
[351163933,1738381834653,-151.0,0.00016849,2]
[351163934,1738381834663,-966.87,0.00016849,2]
[351163935,1738381834672,-151.0,0.00016849,2]
[351163936,1738381834681,-350.19363099,0.00016849,2]
[351163937,1738381834691,-500.0,0.00016849,2]
[351163938,1738381834702,-151.0,0.00016849,2]
[351163939,1738381834712,-257.081458,0.00016849,2]
[351163940,1738381834721,-500.0,0.00016849,2]
[351163941,1738381834732,-151.0,0.00016849,2]
[351163942,1738381834742,-500.0,0.00016849,2]
[351163943,1738381834751,-896.44,0.00016849,2]